fUST/lending_fUST_20250112
["ID","MTS","AMOUNT","RATE_DAILY","PERIOD"]
[348609128,1736671847788,-500.0,0.00019452,3]
[348609129,1736671847797,-516.64,0.00019452,3]
[348609130,1736671847806,-500.0,0.00019452,3]
[348609131,1736671847816,-500.0,0.00019452,3]
[348609132,1736671847826,-1317.57,0.00019452,3]
[348609133,1736671847835,-500.0,0.00019452,3]
[348609135,1736671847845,-500.0,0.00019452,3]
[348609137,1736671847855,-500.0,0.00019452,3]
[348609139,1736671847864,-500.0,0.00019452,3]
[348609141,1736671847873,-500.0,0.00019452,3]
[348609143,1736671847882,-500.0,0.00019452,3]
[348609146,1736671847891,-500.0,0.00019452,3]
[348609148,1736671847900,-500.0,0.00019452,3]
[348609150,1736671847911,-500.0,0.00019452,3]
[348609152,1736671847921,-942.96,0.00019452,3]
[348609154,1736671847930,-500.0,0.00019452,3]
[348609156,1736671847939,-521.31,0.00019452,3]
[348609158,1736671847948,-500.0,0.00019452,3]
[348609160,1736671847958,-500.0,0.00019452,3]
[348609162,1736671847968,-500.0,0.00019452,3]
[348609164,1736671847980,-500.0,0.00019452,3]
[348609166,1736671847989,-500.0,0.00019452,3]
[348609168,1736671847998,-500.0,0.00019452,3]
[348609170,1736671848007,-500.0,0.00019452,3]
[348609172,1736671848017,-5827.16,0.00019452,3]
[348609174,1736671848027,-500.0,0.00019452,3]
[348609176,1736671848036,-508.56643422,0.00019452,3]
[348609178,1736671848046,-500.0,0.00019452,3]
[348609180,1736671848055,-500.0,0.00019452,3]
[348609182,1736671848065,-500.0,0.00019452,3]
[348609184,1736671848075,-500.0,0.00019452,3]
[348609186,1736671848084,-608.55,0.00019452,3]
[348609188,1736671848093,-1869.91,0.00019452,3]
[348609190,1736671848103,-1276.16,0.00019452,3]
[348609192,1736671848112,-500.0,0.00019452,3]
[348609194,1736671848121,-500.0,0.00019452,3]
[348609196,1736671848130,-41850.77,0.00019452,3]
[348609198,1736671848140,-500.0,0.00019452,3]
[348609200,1736671848149,-500.0,0.00019452,3]
[348609202,1736671848158,-9545.42,0.00019452,2]
[348609204,1736671848167,-500.0,0.00019452,3]
[348609206,1736671848177,-1940.94,0.00019452,3]
[348609208,1736671848186,-500.0,0.00019452,3]
[348609210,1736671848195,-534.59828034,0.00019452,3]
[348609212,1736671848204,-1225.79,0.00019452,3]
[348609214,1736671848214,-500.0,0.00019452,3]
[348609216,1736671848223,-500.0,0.00019452,3]
[348609218,1736671848232,-1796.65,0.00019452,3]
[348609220,1736671848241,-1111.54,0.00019452,3]
[348609222,1736671848251,-500.0,0.00019452,3]
[348609224,1736671848260,-5315.6,0.00019452,3]
[348609226,1736671848269,-1539.12,0.00019452,3]
[348609228,1736671848279,-523.98468812,0.00019452,3]
[348609230,1736671848288,-500.0,0.00019452,3]
[348609232,1736671848299,-500.0,0.00019452,3]
[348609234,1736671848308,-500.0,0.00019452,3]
[348609236,1736671848318,-500.0,0.00019452,3]
[348609238,1736671848327,-500.0,0.00019452,3]
[348609240,1736671848336,-590.9,0.00019452,3]
[348609242,1736671848345,-500.0,0.00019452,3]
[348609244,1736671848354,-3650.36,0.00019452,3]
[348609246,1736671848364,-500.0,0.00019452,3]
[348609248,1736671848373,-1682.27,0.00019452,3]
[348609250,1736671848383,-516.14223237,0.00019452,3]
[348609252,1736671848393,-500.0,0.00019452,3]
[348609254,1736671848402,-500.0,0.00019452,3]
[348609256,1736671848411,-500.0,0.00019452,3]
[348609258,1736671848421,-535.5538335,0.00019452,3]
[348609260,1736671848431,-500.0,0.00019452,3]
[348609263,1736671848441,-659.04,0.00019452,3]
[348609265,1736671848451,-391.9175999,0.00019452,3]
[348610253,1736671929754,167.080825,0.00013973,2]
[348610882,1736672438147,-200.0,0.0002363,120]
[348611044,1736672539302,1100.4,0.00025,120]
[348611045,1736672541651,-150.0,0.0002363,61]
[348611046,1736672551150,-150.0,0.0002363,61]
[348611047,1736672574344,-150.0,0.00023642,61]
[348611048,1736672581806,-200.0,0.00023642,61]
[348611171,1736672934277,-158.51,0.000234,31]
[348611172,1736672934305,-158.51,0.000234,31]
[348611173,1736672934332,-158.51,0.000234,31]
[348611174,1736672934360,-158.51,0.000234,31]
[348611175,1736672934387,-158.51,0.000234,31]
[348611176,1736672934413,-158.51,0.000234,31]
[348611177,1736672934439,-158.51,0.000234,31]
[348611178,1736672934491,-20000.0,0.000239,30]
[348611179,1736672934520,-164.223392,0.0002411,35]
[348611180,1736672934543,-164.223392,0.0002411,44]
[348611181,1736672934567,-164.223392,0.0002411,52]
[348611182,1736672934594,-164.223392,0.0002411,60]
[348611183,1736672934619,-164.223392,0.0002411,69]
[348611184,1736672934643,-164.223392,0.0002411,77]
[348611185,1736672934668,-164.223392,0.0002411,86]
[348611186,1736672934692,-164.223392,0.0002411,94]
[348611187,1736672934716,-164.223392,0.0002411,103]
[348611188,1736672934742,-164.223392,0.0002411,111]
[348611189,1736672934766,-164.223392,0.0002411,119]
[348611190,1736672934794,-158.51,0.000242,31]
[348611191,1736672934821,-158.51,0.000242,31]
[348611192,1736672934853,-2790.62785302,0.000249,60]
[348611193,1736672934877,-15000.0,0.000249,30]
[348611194,1736672934905,-1000.5,0.00025,31]
[348611195,1736672934930,-549.0,0.00025,31]
[348611196,1736672934956,-1009.7,0.00025,31]
[348611197,1736672934981,-170.1,0.00025,31]
[348611198,1736672935007,-50000.0,0.00025,30]
[348611199,1736672935032,-291.6544254,0.00025,60]
[348611200,1736672935056,-4470.0,0.00025,30]
[348611201,1736672935078,-137285.13588293,0.00025,30]
[348611202,1736672935106,-19755.34219786,0.00025,30]
[348611203,1736672935131,-680.04865198,0.00025,30]
[348611204,1736672935157,-680.04865198,0.00025,30]
[348611205,1736672935181,-7438.69753278,0.00025,30]
[348611206,1736672935301,-4162.3641301,0.00025,30]
[348611207,1736672935326,-130431.0,0.00025,30]
[348611208,1736672935356,-158.51,0.00025,31]
[348611209,1736672935383,-158.51,0.00025,31]
[348611210,1736672935419,-158.51,0.000258,31]
[348611211,1736672935446,-158.51,0.000258,31]
[348611212,1736672935471,-100418.69336195,0.00025865,60]
[348611213,1736672941949,-879064.89028259,0.00025865,60]
[348611214,1736672941977,-180206.6790341,0.00025882,30]
[348611215,1736672942003,-114953.64905938,0.00026,30]
[348611216,1736672942028,-721.94109259,0.000261,60]
[348611217,1736672942056,-158.51,0.000266,31]
[348611218,1736672942080,-766.7229928,0.0002661,30]
[348611219,1736672942105,-281.22344,0.00027,120]
[348611220,1736672942130,-283.9157,0.00027,120]
[348611221,1736672942153,-3854.8,0.00027,30]
[348611222,1736672942177,-2978.17,0.00027,30]
[348611223,1736672942201,-5000.0,0.00027,30]
[348611224,1736672942225,-5000.0,0.00027,30]
[348611225,1736672942249,-5000.0,0.00027,30]
[348611226,1736672942274,-5000.0,0.00027,30]
[348611227,1736672942298,-200.0,0.00027,120]
[348611228,1736672942322,-5000.0,0.00027,30]
[348611229,1736672942346,-200.0,0.00027,120]
[348611230,1736672942370,-5000.0,0.00027,30]
[348611231,1736672942393,-5000.0,0.00027,30]
[348611232,1736672942416,-5000.0,0.00027,30]
[348611233,1736672942439,-5000.0,0.00027,30]
[348611234,1736672942463,-5000.0,0.00027,30]
[348611235,1736672942487,-5000.0,0.00027,30]
[348611236,1736672942511,-5000.0,0.00027,30]
[348611237,1736672942535,-5000.0,0.00027,30]
[348611238,1736672942559,-5000.0,0.00027,30]
[348611239,1736672942584,-200.0,0.00027,120]
[348611240,1736672942608,-200.0,0.00027,120]
[348611241,1736672942633,-200.0,0.00027,120]
[348611242,1736672942659,-200.0,0.00027,120]
[348611243,1736672942684,-379.68339,0.00027,120]
[348611244,1736672942708,-4171.7,0.00027,30]
[348611245,1736672942842,-5962.17212862,0.00027,120]
[348611246,1736672942866,-847.0,0.00027,120]
[348611247,1736672942889,-334.0,0.00027,120]
[348611248,1736672942912,-213.91425,0.00027,120]
[348611249,1736672942936,-200.0,0.00027,120]
[348611250,1736672942959,-200.0,0.00027,120]
[348611251,1736672942982,-200.0,0.00027,120]
[348611252,1736672943006,-200.0,0.00027,120]
[348611253,1736672943035,-263.16673,0.00027,120]
[348611254,1736672943061,-680.04865198,0.00027,120]
[348611255,1736672943088,-200.0,0.000272,120]
[348611256,1736672943114,-4799.0,0.0002721,30]
[348611257,1736672943139,-400.0,0.00027397,60]
[348611258,1736672943165,-1678.797276,0.00027397,120]
[348611259,1736672956090,-357.89469193,0.00017627,2]
[348611260,1736672956110,-3873.3064249,0.00017805,2]
[348611261,1736672956132,-1144.06251458,0.00018,4]
[348611262,1736672956152,-2376.0,0.00018105,2]
[348611263,1736672956172,-3112.30503445,0.00018106,2]
[348611274,1736672976597,161.396037,0.00013973,2]
[348611275,1736673031850,160.0,0.00023575,120]
[348611382,1736673036463,-300.0,0.00017748,2]
[348611383,1736673036472,-24900.0,0.00017749,2]
[348611384,1736673036482,-17674.19010715,0.00018106,2]
[348611385,1736673036493,-577.60521613,0.0001818,2]
[348611386,1736673036502,-2986.61757281,0.0001828,2]
[348611387,1736673036512,-346.15177326,0.0001838,2]
[348611388,1736673036521,-546.165,0.0001848,2]
[348611389,1736673036531,-150.34,0.000185,2]
[348611390,1736673036540,-199.05714084,0.000188,2]
[348611391,1736673036549,-9010.10502296,0.00018801,2]
[348611392,1736673036559,-263.22393356,0.00018839,2]
[348611393,1736673036569,-263.22393354,0.00018899,2]
[348611394,1736673036578,-5000.0,0.00018904,7]
[348611395,1736673036588,-199.05714083,0.00018939,2]
[348611396,1736673036597,-500.0,0.00018947,2]
[348611397,1736673036608,-500.0,0.00018947,2]
[348611399,1736673036619,-458.12240529,0.00018947,2]
[348611402,1736673036629,-500.0,0.00018947,2]
[348611404,1736673036638,-199.70101933,0.00018947,2]
[348611406,1736673036647,-500.0,0.00018947,2]
[348611408,1736673036657,-500.0,0.00018947,2]
[348611409,1736673036666,-605.05153936,0.00018947,2]
[348611411,1736673036676,-500.0,0.00018947,2]
[348611413,1736673036689,-500.0,0.00018947,2]
[348611414,1736673036699,-500.0,0.00018947,2]
[348611415,1736673036708,-500.0,0.00018947,2]
[348611417,1736673036717,-644.80575892,0.00018947,2]
[348611419,1736673036726,-500.0,0.00018947,2]
[348611421,1736673036736,-500.0,0.00018947,2]
[348611423,1736673036745,-500.0,0.00018947,2]
[348611425,1736673036754,-500.0,0.00018947,2]
[348611427,1736673036763,-500.0,0.00018947,2]
[348611429,1736673036773,-500.0,0.00018947,2]
[348611431,1736673036782,-500.0,0.00018947,2]
[348611433,1736673036791,-500.0,0.00018947,2]
[348611435,1736673036801,-500.0,0.00018947,2]
[348611437,1736673036811,-242.67416409,0.00018947,2]
[348611439,1736673036820,-500.0,0.00018947,2]
[348611441,1736673036829,-500.0,0.00018947,2]
[348611443,1736673036838,-500.0,0.00018947,2]
[348611445,1736673036848,-500.0,0.00018947,2]
[348611447,1736673036857,-500.0,0.00018947,2]
[348611449,1736673036866,-500.0,0.00018947,2]
[348611450,1736673036876,-500.0,0.00018947,2]
[348611451,1736673036886,-500.0,0.00018947,2]
[348611452,1736673036895,-500.0,0.00018947,2]
[348611453,1736673036904,-500.0,0.00018947,2]
[348611454,1736673036913,-500.0,0.00018947,2]
[348611455,1736673036928,-500.0,0.00018947,2]
[348611456,1736673036944,-500.0,0.00018947,2]
[348611457,1736673036954,-500.0,0.00018947,2]
[348611458,1736673036964,-577.6052161,0.00018948,2]
[348611459,1736673036973,-263.22393354,0.00018959,2]
[348611460,1736673036983,-263.22393354,0.00019018,2]
[348611461,1736673036993,-199.05714083,0.00019078,2]
[348611462,1736673037003,-263.22393354,0.00019078,2]
[348611463,1736673037013,-3000.0,0.00019078,2]
[348611464,1736673037023,-9010.10502296,0.00019101,2]
[348611465,1736673037033,-500.0,0.00019173,2]
[348611466,1736673037043,-466.1132506,0.00019173,2]
[348611467,1736673037053,-255.96584626,0.00019173,2]
[348611468,1736673037064,-368.19616792,0.00019173,2]
[348611469,1736673037074,-152.0067967,0.00019173,2]
[348611470,1736673037084,-159.01123011,0.00019173,2]
[348611471,1736673037094,-160.00715443,0.00019173,2]
[348611472,1736673037104,-500.0,0.00019173,2]
[348611473,1736673037113,-502.11681342,0.00019173,2]
[348611474,1736673037123,-489.18644914,0.00019173,2]
[348611475,1736673037133,-501.18253682,0.00019173,2]
[348611476,1736673037143,-496.53014447,0.00019173,2]
[348611477,1736673037152,-267.01221526,0.00019173,2]
[348611478,1736673037161,-500.0,0.00019173,2]
[348611479,1736673037171,-151.01066507,0.00019173,2]
[348611480,1736673037180,-411.27725546,0.00019173,2]
[348611481,1736673037190,-500.30736033,0.00019173,2]
[348611482,1736673037199,-500.0,0.00019173,2]
[348611483,1736673037209,-500.0,0.00019173,2]
[348611484,1736673037218,-505.45068633,0.00019177,2]
[348611485,1736673037228,-248.35230283,0.00019177,2]
[348611486,1736673037238,-500.0,0.00019177,2]
[348611487,1736673037247,-166.02944604,0.00019177,2]
[348611488,1736673037257,-500.0,0.00019177,2]
[348611489,1736673037266,-185.11618559,0.00019177,2]
[348611490,1736673037276,-192.35431242,0.00019177,2]
[348611491,1736673037286,-307.53737668,0.00019177,2]
[348611492,1736673037296,-500.0,0.00019178,2]
[348611493,1736673037306,-374.63743912,0.00019178,2]
[348611494,1736673037315,-500.46433456,0.00019178,2]
[348611495,1736673037325,-500.0,0.00019178,2]
[348611496,1736673037334,-500.0,0.00019178,2]
[348611497,1736673037344,-500.0,0.00019178,2]
[348611498,1736673037354,-653.61,0.00019178,2]
[348611499,1736673037363,-500.0,0.00019178,2]
[348611500,1736673037373,-500.0,0.00019178,2]
[348611501,1736673037382,-500.0,0.00019178,2]
[348611502,1736673037392,-500.0,0.00019178,2]
[348611503,1736673037401,-509.78139636,0.00019178,2]
[348611504,1736673037411,-508.93,0.00019178,2]
[348611505,1736673037420,-500.0,0.00019178,2]
[348611506,1736673037429,-500.0,0.00019178,2]
[348611507,1736673037439,-500.0,0.00019178,2]
[348611508,1736673037448,-509.11534163,0.00019178,2]
[348611509,1736673037458,-500.0,0.00019178,2]
[348611510,1736673037468,-500.0,0.00019178,2]
[348611511,1736673037477,-500.0,0.00019178,2]
[348611512,1736673037486,-500.0,0.00019178,2]
[348611513,1736673037497,-500.0,0.00019178,2]
[348611514,1736673037507,-241.06318636,0.00019178,2]
[348611515,1736673037620,-519.52470496,0.00019178,2]
[348611516,1736673037643,-500.0,0.00019178,2]
[348611517,1736673037653,-500.0,0.00019178,2]
[348611518,1736673037662,-360.12797121,0.00019178,2]
[348611519,1736673037672,-500.0,0.00019178,2]
[348611520,1736673037681,-513.31,0.00019178,2]
[348611521,1736673037691,-500.0,0.00019178,2]
[348611522,1736673037700,-500.0,0.00019178,2]
[348611523,1736673037709,-504.95633545,0.00019178,2]
[348611524,1736673037718,-500.0,0.00019178,2]
[348611525,1736673037727,-523.84,0.00019178,2]
[348611526,1736673037736,-507.74585413,0.00019178,2]
[348611527,1736673037745,-528.62615322,0.00019178,2]
[348611528,1736673037754,-500.0,0.00019178,2]
[348611529,1736673037763,-500.0,0.00019178,2]
[348611530,1736673037773,-500.0,0.00019178,2]
[348611531,1736673037782,-537.92447311,0.00019178,2]
[348611532,1736673037793,-505.3963837,0.00019178,2]
[348611533,1736673037802,-500.0,0.00019178,2]
[348611534,1736673037811,-520.55616373,0.00019178,2]
[348611535,1736673037820,-500.0,0.00019178,2]
[348611536,1736673037829,-501.34102626,0.00019178,2]
[348611537,1736673037838,-500.0,0.00019178,2]
[348611538,1736673037847,-500.0,0.00019178,2]
[348611539,1736673037856,-500.0,0.00019178,2]
[348611540,1736673037866,-500.0,0.00019178,2]
[348611541,1736673037876,-536.64,0.00019178,2]
[348611542,1736673037885,-501.43054228,0.00019178,2]
[348611543,1736673037895,-500.0,0.00019178,2]
[348611544,1736673037905,-500.79257966,0.00019178,2]
[348611545,1736673037915,-500.0,0.00019178,2]
[348611546,1736673037924,-5858.59,0.00019178,2]
[348611547,1736673037933,-500.0,0.00019178,2]
[348611548,1736673037943,-500.0,0.00019178,2]
[348611549,1736673037952,-500.0,0.00019178,2]
[348611550,1736673037961,-500.0,0.00019178,2]
[348611551,1736673037970,-502.65486021,0.00019178,2]
[348611552,1736673037979,-500.0,0.00019178,2]
[348611553,1736673037988,-500.0,0.00019178,2]
[348611554,1736673037997,-500.0,0.00019178,2]
[348611555,1736673038007,-536.14016044,0.00019178,2]
[348611557,1736673038017,-502.0511823,0.00019178,2]
[348611558,1736673038026,-501.27301503,0.00019178,2]
[348611559,1736673038035,-500.0,0.00019178,2]
[348611560,1736673038044,-234.02094247,0.00019178,2]
[348611561,1736673038053,-1428.52,0.00019178,2]
[348611562,1736673038063,-500.96004803,0.00019178,2]
[348611563,1736673038072,-500.0,0.00019178,2]
[348611564,1736673038081,-500.0,0.00019178,2]
[348611565,1736673038090,-500.0,0.00019178,2]
[348611566,1736673038100,-500.0,0.00019178,2]
[348611567,1736673038109,-500.0,0.00019178,2]
[348611568,1736673038119,-500.0,0.00019178,2]
[348611569,1736673038128,-500.0,0.00019178,2]
[348611570,1736673038137,-500.0,0.00019178,2]
[348611571,1736673038148,-189.68882962,0.00019178,2]
[348611572,1736673038158,-500.0,0.00019178,2]
[348611573,1736673038169,-500.0,0.00019178,2]
[348611574,1736673038179,-500.0,0.00019178,2]
[348611575,1736673038188,-500.0,0.00019178,2]
[348611576,1736673038197,-500.0,0.00019178,2]
[348611577,1736673038206,-500.0,0.00019178,2]
[348611578,1736673038216,-500.0,0.00019178,2]
[348611580,1736673038225,-185.60237535,0.00019178,2]
[348611581,1736673038234,-259.12177444,0.00019178,2]
[348611583,1736673038244,-500.0,0.00019178,2]
[348611585,1736673038253,-597.66,0.00019178,2]
[348611587,1736673038262,-502.25905804,0.00019178,2]
[348611589,1736673038271,-536.74,0.00019178,2]
[348611591,1736673038280,-500.0,0.00019178,2]
[348611593,1736673038289,-500.0,0.00019178,2]
[348611595,1736673038299,-561.5037145,0.00019178,2]
[348611597,1736673038310,-500.0,0.00019178,2]
[348611599,1736673038319,-500.0,0.00019178,2]
[348611601,1736673038328,-500.0,0.00019178,2]
[348611603,1736673038337,-500.0,0.00019178,2]
[348611605,1736673038346,-200.0,0.00019178,2]
[348611607,1736673038355,-500.0,0.00019178,2]
[348611609,1736673038364,-721.89,0.00019178,2]
[348611611,1736673038373,-511.64698148,0.00019178,2]
[348611613,1736673038382,-500.0,0.00019178,2]
[348611615,1736673038392,-500.0,0.00019178,2]
[348611617,1736673038402,-500.0,0.00019178,2]
[348611619,1736673038411,-500.0,0.00019178,2]
[348611621,1736673038420,-500.0,0.00019178,2]
[348611623,1736673038430,-500.0,0.00019178,2]
[348611625,1736673038438,-3720.88,0.00019178,2]
[348611627,1736673038448,-500.0,0.00019178,2]
[348611629,1736673038457,-500.0,0.00019178,2]
[348611631,1736673038467,-500.0,0.00019178,2]
[348611633,1736673038477,-501.32530202,0.00019178,2]
[348611635,1736673038487,-508.59332797,0.00019178,2]
[348611637,1736673038497,-500.0,0.00019178,2]
[348611639,1736673038506,-508.36117078,0.00019178,2]
[348611641,1736673038515,-500.0,0.00019178,2]
[348611643,1736673038525,-501.09404817,0.00019178,2]
[348611645,1736673038534,-1281.0,0.00019178,2]
[348611647,1736673038543,-652.75,0.00019178,2]
[348611649,1736673038552,-500.0,0.00019178,2]
[348611651,1736673038561,-500.0,0.00019178,2]
[348611653,1736673038570,-151.0,0.00019178,2]
[348611655,1736673038580,-151.0,0.00019178,2]
[348611657,1736673038588,-504.37229014,0.00019178,2]
[348611658,1736673038597,-500.0,0.00019178,2]
[348611660,1736673038607,-500.0,0.00019178,2]
[348611662,1736673038619,-151.0,0.00019178,2]
[348611664,1736673038628,-500.0,0.00019178,2]
[348611666,1736673038638,-151.0,0.00019178,2]
[348611668,1736673038647,-500.0,0.00019178,2]
[348611671,1736673038657,-500.0,0.00019178,2]
[348611672,1736673038667,-500.0,0.00019178,2]
[348611675,1736673038677,-492.70023162,0.00019178,2]
[348611677,1736673038690,-514.79873477,0.00019178,2]
[348611679,1736673038698,-500.0,0.00019178,2]
[348611681,1736673038707,-1123.77,0.00019178,2]
[348611682,1736673038717,-500.0,0.00019178,2]
[348611685,1736673038726,-500.0,0.00019178,2]
[348611686,1736673038735,-608.1524699,0.00019178,2]
[348611689,1736673038744,-500.0,0.00019178,2]
[348611691,1736673038754,-388.41009275,0.00019178,2]
[348611693,1736673038763,-500.0,0.00019178,2]
[348611695,1736673038772,-500.0,0.00019178,2]
[348611697,1736673038782,-500.0,0.00019178,2]
[348611699,1736673038791,-501.58248104,0.00019178,2]
[348611701,1736673038801,-500.0,0.00019178,2]
[348611704,1736673038810,-500.0,0.00019178,2]
[348611707,1736673038819,-500.0,0.00019178,2]
[348611710,1736673038828,-500.0,0.00019178,2]
[348611714,1736673038838,-500.0,0.00019178,2]
[348611717,1736673038847,-500.0,0.00019178,2]
[348611721,1736673038856,-500.0,0.00019178,2]
[348611725,1736673038865,-500.86638931,0.00019178,2]
[348611728,1736673038874,-515.89,0.00019178,2]
[348611731,1736673038883,-500.0,0.00019178,2]
[348611734,1736673038892,-500.0,0.00019178,2]
[348611737,1736673038901,-656.03,0.00019178,2]
[348611740,1736673038910,-500.0,0.00019178,2]
[348611743,1736673038920,-453.9024295,0.00019178,2]
[348611746,1736673038929,-500.0,0.00019178,2]
[348611748,1736673038939,-500.0,0.00019178,2]
[348611750,1736673038948,-552.43205084,0.00019178,2]
[348611752,1736673038957,-500.0,0.00019178,2]
[348611754,1736673038967,-569.59109836,0.00019178,2]
[348611756,1736673038976,-500.0,0.00019178,2]
[348611758,1736673038985,-501.92152736,0.00019178,2]
[348611760,1736673038994,-501.62632194,0.00019178,2]
[348611762,1736673039003,-500.0,0.00019178,2]
[348611764,1736673039013,-500.0,0.00019178,2]
[348611766,1736673039022,-500.0,0.00019178,2]
[348611768,1736673039031,-500.0,0.00019178,2]
[348611770,1736673039040,-502.44828887,0.00019178,2]
[348611772,1736673039050,-500.0,0.00019178,2]
[348611774,1736673039059,-500.0,0.00019178,2]
[348611776,1736673039068,-500.0,0.00019178,2]
[348611778,1736673039078,-1385.66,0.00019178,2]
[348611780,1736673039088,-500.0,0.00019178,2]
[348611782,1736673039097,-502.25412724,0.00019178,2]
[348611784,1736673039106,-500.0,0.00019178,2]
[348611786,1736673039116,-295.24241682,0.00019178,2]
[348611788,1736673039125,-500.0,0.00019178,2]
[348611790,1736673039135,-500.0,0.00019178,2]
[348611792,1736673039144,-500.0,0.00019178,2]
[348611794,1736673039153,-500.0,0.00019178,2]
[348611796,1736673039162,-500.0,0.00019178,2]
[348611798,1736673039171,-500.0,0.00019178,2]
[348611800,1736673039181,-500.0,0.00019178,2]
[348611802,1736673039191,-512.15172943,0.00019178,2]
[348611804,1736673039200,-500.0,0.00019178,2]
[348611806,1736673039209,-500.0,0.00019178,2]
[348611808,1736673039218,-500.0,0.00019178,2]
[348611810,1736673039227,-500.0,0.00019178,2]
[348611812,1736673039237,-558.06022588,0.00019178,2]
[348611814,1736673039246,-241.52658294,0.00019178,2]
[348611838,1736673039585,-324.66176247,0.00019178,2]
[348611839,1736673039595,-340.1920214,0.00019178,2]
[348611840,1736673039614,-169.7467763,0.00019178,2]
[348611841,1736673039623,-424.61296066,0.00019178,2]
[348612158,1736673043612,-283.9228889,0.00018412,2]
[348612161,1736673043624,-79.00754711,0.00019178,2]
[348612163,1736673043633,-500.0,0.00019178,2]
[348612165,1736673043643,-500.0,0.00019178,2]
[348612167,1736673043653,-500.0,0.00019178,2]
[348612169,1736673043662,-500.0,0.00019178,2]
[348612171,1736673043671,-500.0,0.00019178,2]
[348612173,1736673043682,-500.0,0.00019178,2]
[348612175,1736673043692,-502.32741563,0.00019178,2]
[348612177,1736673043702,-500.0,0.00019178,2]
[348612179,1736673043711,-504.70878124,0.00019178,2]
[348612181,1736673043720,-500.0,0.00019178,2]
[348612183,1736673043730,-500.0,0.00019178,2]
[348612185,1736673043741,-500.0,0.00019178,2]
[348612187,1736673043750,-620.8,0.00019178,2]
[348612189,1736673043759,-511.13370521,0.00019178,2]
[348612191,1736673043769,-500.0,0.00019178,2]
[348612193,1736673043778,-591.79,0.00019178,2]
[348612195,1736673043787,-517.03788163,0.00019178,2]
[348612197,1736673043797,-500.0,0.00019178,2]
[348612199,1736673043806,-512.47731852,0.00019178,2]
[348612201,1736673043816,-550.49926093,0.00019178,2]
[348612203,1736673043825,-613.25165781,0.00019178,2]
[348612205,1736673043835,-500.0,0.00019178,2]
[348612207,1736673043844,-558.92,0.00019178,2]
[348612209,1736673043854,-500.0,0.00019178,2]
[348612211,1736673043863,-500.0,0.00019178,2]
[348612213,1736673043873,-1160.11,0.00019178,2]
[348612215,1736673043882,-500.0,0.00019178,2]
[348612217,1736673043891,-513.77078094,0.00019178,2]
[348612219,1736673043900,-1286.59,0.00019178,2]
[348612221,1736673043910,-501.18236668,0.00019178,2]
[348612223,1736673043919,-277.6134284,0.00019178,2]
[348612225,1736673043928,-500.0,0.00019178,2]
[348612226,1736673043937,-500.0,0.00019178,2]
[348612229,1736673043947,-501.67582649,0.00019178,2]
[348612230,1736673043957,-500.0,0.00019178,2]
[348612233,1736673043966,-500.0,0.00019178,2]
[348612234,1736673043976,-500.0,0.00019178,2]
[348612237,1736673043986,-500.0,0.00019178,2]
[348612239,1736673043995,-500.0,0.00019178,2]
[348612241,1736673044005,-500.0,0.00019178,2]